fUSD/lending_fUSD_20260701
["ID","MTS","AMOUNT","RATE_DAILY","PERIOD"]
[426796462,1782835228000,1016.60132,0.0003,120]
[426796463,1782835250000,10007.28493577,0.0003,120]
[426796472,1782835473000,151.0,0.00028568,30]
[426796473,1782835474000,151.0,0.00029568,30]
[426796474,1782835511000,161.0,0.00028582,30]
[426796475,1782835513000,161.0,0.00029582,30]
[426796476,1782835520000,5878.7923,0.00013947,2]
[426796478,1782835590000,155.0,0.00028582,30]
[426796480,1782835614000,-312.81071475,0.00014045,2]
[426796479,1782835614000,-166.66,0.00014018,2]
[426796482,1782835630000,156.0,0.00028582,30]
[426796483,1782835631000,156.0,0.00029582,30]
[426796484,1782835665000,200.0,0.00013699,2]
[426796485,1782835703000,1625.588828,0.00030136,30]
[426796486,1782835708000,166.14,0.00013724,2]
[426796487,1782835718000,380.84,0.0001373,2]
[426796488,1782835749000,660.0,0.00028582,30]
[426796489,1782835750000,660.0,0.00029582,30]
[426796507,1782835832000,-500.0,0.00014045,2]
[426796493,1782835832000,-256.7585824,0.00014044,2]
[426796499,1782835832000,-905.03509784,0.00014044,2]
[426796502,1782835832000,-1223.62246555,0.00014044,2]
[426796501,1782835832000,-1237.08734021,0.00014044,2]
[426796504,1782835832000,-500.0,0.00014045,2]
[426796503,1782835832000,-187.18928525,0.00014045,2]
[426796506,1782835832000,-191.26003712,0.00014045,2]
[426796505,1782835832000,-507.05755583,0.00014045,2]
[426796508,1782835832000,-500.0,0.00014045,2]
[426796509,1782835832000,-346.8109181,0.00014045,2]
[426796511,1782835832000,-500.0,0.00014045,2]
[426796518,1782835832000,-500.0,0.00014045,2]
[426796519,1782835832000,-500.0,0.00014045,2]
[426796516,1782835832000,-500.0,0.00014045,2]
[426796517,1782835832000,-500.0,0.00014045,2]
[426796520,1782835832000,-122.00738356,0.00014045,2]
[426796512,1782835832000,-500.0,0.00014045,2]
[426796510,1782835832000,-153.1890819,0.00014045,2]
[426796514,1782835832000,-500.0,0.00014045,2]
[426796513,1782835832000,-200.0,0.00014045,2]
[426796515,1782835832000,-500.0,0.00014045,2]
[426796529,1782835833000,-500.0,0.00014045,2]
[426796535,1782835833000,-600.0,0.00014045,2]
[426796533,1782835833000,-200.0,0.00014045,2]
[426796532,1782835833000,-150.0,0.00014045,2]
[426796530,1782835833000,-500.0,0.00014045,2]
[426796531,1782835833000,-500.0,0.00014045,2]
[426796528,1782835833000,-500.0,0.00014045,2]
[426796524,1782835833000,-500.0,0.00014045,2]
[426796526,1782835833000,-500.0,0.00014045,2]
[426796525,1782835833000,-500.0,0.00014045,2]
[426796527,1782835833000,-500.0,0.00014045,2]
[426796534,1782835833000,-300.0,0.00014045,2]
[426796521,1782835833000,-377.99261644,0.00014045,2]
[426796522,1782835833000,-500.0,0.00014045,2]
[426796523,1782835833000,-500.0,0.00014045,2]
[426796536,1782835833000,-200.0,0.00014045,2]
[426796544,1782835833000,-600.0,0.00014045,2]
[426796540,1782835833000,-300.0,0.00014045,2]
[426796538,1782835833000,-300.0,0.00014045,2]
[426796558,1782835833000,-296.78043274,0.000144,5]
[426796557,1782835833000,-166.66,0.00014313,2]
[426796555,1782835833000,-700.0,0.000142,5]
[426796554,1782835833000,-160.0,0.00014192,2]
[426796551,1782835833000,-300.0,0.000141,5]
[426796553,1782835833000,-80.17438204,0.00014166,2]
[426796556,1782835833000,-1000.0,0.000143,5]
[426796550,1782835833000,-515.14743516,0.00014046,2]
[426796546,1782835833000,-1144.91609425,0.00014046,2]
[426796548,1782835833000,-443.65147059,0.00014046,2]
[426796542,1782835833000,-600.0,0.00014045,2]
[426796537,1782835833000,-268.82509213,0.00014045,2]
[426796552,1782835833000,-136.45100518,0.00014166,2]
[426796539,1782835833000,-300.0,0.00014045,2]
[426796586,1782835838000,-5800.0,0.00014883,2]
[426796588,1782835838000,-347.86,0.00014889,2]
[426796591,1782835838000,-3385.48962412,0.000149,2]
[426796587,1782835838000,-510.0,0.00014889,2]
[426796590,1782835838000,-1474.9609,0.000149,2]
[426796589,1782835838000,-5800.0,0.00014891,2]
[426796592,1782835838000,-1128.49654137,0.000149,2]
[426796593,1782835838000,-5800.0,0.000149,2]
[426796581,1782835838000,-5800.0,0.00014841,2]
[426796594,1782835838000,-300.0,0.000149,5]
[426796585,1782835838000,-5800.0,0.00014874,2]
[426796584,1782835838000,-5800.0,0.00014866,2]
[426796573,1782835838000,-300.0,0.000146,5]
[426796583,1782835838000,-5800.0,0.00014858,2]
[426796580,1782835838000,-510.0,0.00014837,2]
[426796577,1782835838000,-533.0,0.00014821,2]
[426796578,1782835838000,-5800.0,0.00014823,2]
[426796579,1782835838000,-5800.0,0.00014832,2]
[426796575,1782835838000,-300.0,0.000147,5]
[426796574,1782835838000,-166.66,0.00014609,2]
[426796571,1782835838000,-1103.21956726,0.000144,5]
[426796572,1782835838000,-1700.0,0.000145,5]
[426796570,1782835838000,-552.54716745,0.00014045,2]
[426796569,1782835838000,-323.93650688,0.00014045,2]
[426796596,1782835838000,-2500.0,0.000149,2]
[426796582,1782835838000,-5800.0,0.00014849,2]
[426796595,1782835838000,-21644.31780965,0.000149,2]
[426796576,1782835838000,-300.0,0.000148,5]
[426796598,1782835838000,-4507.63923663,0.000149,2]
[426796646,1782835838000,-2399.91851468,0.00015,2]
[426796651,1782835838000,-5907853.47384197,0.00015,2]
[426796644,1782835838000,-491.529431,0.00015,2]
[426796638,1782835838000,-9098.04144405,0.00015,2]
[426796642,1782835838000,-3855.24301457,0.00015,2]
[426796639,1782835838000,-5860.01408113,0.00015,2]
[426796633,1782835838000,-464468.8305914,0.00015,2]
[426796631,1782835838000,-500.0,0.00014999,2]
[426796628,1782835838000,-500.0,0.00014999,2]
[426796626,1782835838000,-500.0,0.00014999,2]
[426796624,1782835838000,-1072.57038613,0.00014999,5]
[426796619,1782835838000,-500.0,0.00014999,2]
[426796649,1782835838000,-12431055.63741526,0.00015,2]
[426796622,1782835838000,-200.2663484,0.00014999,5]
[426796617,1782835838000,-500.0,0.00014999,2]
[426796600,1782835838000,-529.69666633,0.00014988,2]
[426796601,1782835838000,-830.93476265,0.00014999,5]
[426796603,1782835838000,-500.0,0.00014999,2]
[426796602,1782835838000,-500.0,0.00014999,2]
[426796605,1782835838000,-500.0,0.00014999,2]
[426796599,1782835838000,-166.66,0.00014904,2]
[426796597,1782835838000,-163.02666272,0.000149,2]
[426796609,1782835838000,-500.0,0.00014999,2]
[426796611,1782835838000,-500.0,0.00014999,2]
[426796615,1782835838000,-500.0,0.00014999,2]
[426796613,1782835838000,-500.0,0.00014999,2]
[426796607,1782835838000,-500.0,0.00014999,2]
[426796661,1782835840000,-251.2337488,0.00014709,2]
[426796662,1782835840000,-1661.62277832,0.00015,2]
[426796663,1782835842000,151.0,0.00028582,30]
[426796670,1782835843000,-21831.82120975,0.00015,2]
[426796672,1782835843000,-790.70620023,0.00015,2]
[426796675,1782835843000,156.0,0.00029582,30]
[426796673,1782835843000,-1361.39009554,0.00015,2]
[426796674,1782835843000,-53.27452386,0.00015,2]
[426796671,1782835843000,-7625.8003797,0.00015,2]
[426796678,1782835849000,-150.0,0.000144,2]
[426796679,1782835849000,-1653.77838496,0.00015,2]
[426796688,1782835880000,89426.4229,0.00013947,2]
[426796689,1782835904000,3046.258,0.00013947,2]
[426796690,1782835911000,1132.10903468,0.0003013,120]
[426796691,1782835912000,765.0,0.0003013,30]
[426796692,1782836001000,50000.0,0.00030137,30]
[426796693,1782836002000,249822.18524263,0.00013947,2]
[426796694,1782836006000,50000.0,0.00030137,31]
[426796695,1782836081000,174.02,0.00029232,30]
[426796698,1782836298000,166.66,0.00012806,2]
[426796697,1782836298000,166.66,0.00012542,2]
[426796699,1782836405000,17092.71711335,0.00030137,120]
[426796708,1782836636000,182.0,0.00028565,30]
[426796709,1782836637000,182.0,0.00029565,30]
[426796710,1782836681000,202.0,0.00028585,30]
[426796711,1782836682000,202.0,0.00029585,30]
[426796715,1782836807000,208.0,0.00028585,30]
[426796716,1782836808000,208.0,0.00029585,30]
[426796717,1782836935000,696.0,0.00028585,30]
[426796718,1782836936000,696.0,0.00029585,30]
[426796750,1782837032000,-500.0,0.00013532,2]
[426796741,1782837032000,-500.0,0.00013532,2]
[426796739,1782837032000,-500.0,0.00013532,2]
[426796744,1782837032000,-500.0,0.00013532,2]
[426796740,1782837032000,-500.0,0.00013532,2]
[426796735,1782837032000,-165.79,0.00013353,2]
[426796738,1782837032000,-500.0,0.00013532,2]
[426796737,1782837032000,-500.0,0.00013532,2]
[426796748,1782837032000,-570.0,0.00013532,2]
[426796726,1782837032000,-154.61291303,0.00013159,2]
[426796734,1782837032000,-166.66,0.00013335,2]
[426796732,1782837032000,-1025.71,0.00013227,2]
[426796731,1782837032000,-216.62538722,0.00013213,2]
[426796729,1782837032000,-284.13030558,0.00013159,2]
[426796730,1782837032000,-894.87,0.00013202,2]
[426796728,1782837032000,-954.09695645,0.00013159,2]
[426796727,1782837032000,-623.75982494,0.00013159,2]
[426796724,1782837032000,-166.66,0.0001307,2]
[426796725,1782837032000,-216.91002174,0.00013093,2]
[426796733,1782837032000,-150.0,0.00013271,2]
[426796746,1782837032000,-500.0,0.00013532,2]
[426796774,1782837032000,-323.08333273,0.00013532,2]
[426796753,1782837032000,-500.0,0.00013532,2]
[426796742,1782837032000,-500.0,0.00013532,2]
[426796796,1782837032000,-115.54025405,0.00013532,2]
[426796794,1782837032000,-500.0,0.00013532,2]
[426796790,1782837032000,-500.0,0.00013532,2]
[426796792,1782837032000,-500.0,0.00013532,2]
[426796787,1782837032000,-500.0,0.00013532,2]
[426796783,1782837032000,-500.0,0.00013532,2]
[426796785,1782837032000,-500.0,0.00013532,2]
[426796777,1782837032000,-176.91666727,0.00013532,2]
[426796779,1782837032000,-500.0,0.00013532,2]
[426796789,1782837032000,-500.0,0.00013532,2]
[426796771,1782837032000,-500.0,0.00013532,2]
[426796781,1782837032000,-500.0,0.00013532,2]
[426796759,1782837032000,-500.0,0.00013532,2]
[426796763,1782837032000,-500.0,0.00013532,2]
[426796755,1782837032000,-500.0,0.00013532,2]
[426796767,1782837032000,-500.0,0.00013532,2]
[426796768,1782837032000,-500.0,0.00013532,2]
[426796761,1782837032000,-500.0,0.00013532,2]
[426796765,1782837032000,-500.0,0.00013532,2]
[426796757,1782837032000,-434.34803336,0.00013532,2]
[426796832,1782837038000,-500.0,0.00013757,2]
[426796826,1782837038000,-500.0,0.00013757,2]
[426796831,1782837038000,-500.0,0.00013757,2]
[426796821,1782837038000,-200.0,0.00013699,2]
[426796822,1782837038000,-361.82524607,0.00013757,2]
[426796820,1782837038000,-166.66,0.00013599,2]
[426796829,1782837038000,-290.14474695,0.00013757,2]
[426796827,1782837038000,-247.09959395,0.00013757,2]
[426796823,1782837038000,-252.64522269,0.00013757,2]
[426796825,1782837038000,-500.0,0.00013757,2]
[426796828,1782837038000,-500.0,0.00013757,2]
[426796824,1782837038000,-237.37991004,0.00013757,2]
[426796833,1782837038000,-2208.901,0.0001376,2]
[426796834,1782837038000,-162.23408352,0.0001376,2]
[426796817,1782837038000,-500.0,0.00013532,2]
[426796830,1782837038000,-500.0,0.00013757,2]
[426796812,1782837038000,-500.0,0.00013532,2]
[426796808,1782837038000,-614.93481986,0.00013532,2]
[426796815,1782837038000,-500.0,0.00013532,2]
[426796835,1782837038000,-33326.4581,0.00013847,2]
[426796801,1782837038000,-384.45974595,0.00013532,2]
[426796805,1782837038000,-500.0,0.00013532,2]
[426796806,1782837038000,-500.0,0.00013532,2]
[426796804,1782837038000,-500.0,0.00013532,2]
[426796802,1782837038000,-500.0,0.00013532,2]
[426796803,1782837038000,-611.14918707,0.00013532,2]
[426796818,1782837038000,-487.49769117,0.00013533,2]
[426796807,1782837038000,-500.0,0.00013532,2]
[426796819,1782837038000,-407.37230883,0.00013533,2]
[426796809,1782837038000,-500.0,0.00013532,2]
[426796810,1782837038000,-500.0,0.00013532,2]
[426796811,1782837038000,-500.0,0.00013532,2]
[426796813,1782837038000,-500.0,0.00013532,2]
[426796816,1782837038000,-500.0,0.00013532,2]
[426796814,1782837038000,-500.0,0.00013532,2]
[426796836,1782837038000,-2500.0,0.00013847,2]
[426796856,1782837038000,-788.05,0.00014002,2]
[426796838,1782837038000,-166.66,0.00013863,2]
[426796875,1782837038000,-162.10337094,0.00014276,2]
[426796864,1782837038000,-166.66,0.00014144,2]
[426796879,1782837038000,-159.52950513,0.00014378,2]
[426796869,1782837038000,-160.0,0.00014188,2]
[426796877,1782837038000,-1258.96578757,0.00014346,2]
[426796862,1782837038000,-1258.96578757,0.00014124,2]
[426796867,1782837038000,-162.10337094,0.00014152,2]
[426796882,1782837038000,-600.0,0.00014378,2]
[426796886,1782837038000,-600.0,0.00014378,2]
[426796887,1782837038000,-600.0,0.00014378,2]
[426796891,1782837038000,-300.0,0.00014378,2]
[426796889,1782837038000,-300.0,0.00014378,2]
[426796896,1782837038000,-300.0,0.00014378,2]
[426796894,1782837038000,-300.0,0.00014378,2]
[426796837,1782837038000,-894.87,0.00013863,2]
[426796873,1782837038000,-1258.96578757,0.00014235,2]
[426796871,1782837038000,-894.87,0.00014193,2]
[426796884,1782837038000,-600.0,0.00014378,2]
[426796850,1782837038000,-304.26545713,0.00013946,2]
[426796842,1782837038000,-183.68868896,0.00013943,2]
[426796860,1782837038000,-162.10337094,0.00014027,2]
[426796840,1782837038000,-162.10337094,0.00013902,2]
[426796839,1782837038000,-1258.96578757,0.00013902,2]
[426796841,1782837038000,-221.65547655,0.00013902,2]
[426796844,1782837038000,-500.0,0.00013946,2]
[426796845,1782837038000,-500.0,0.00013946,2]
[426796843,1782837038000,-496.14,0.00013946,2]
[426796847,1782837038000,-500.0,0.00013946,2]
[426796848,1782837038000,-500.0,0.00013946,2]
[426796898,1782837038000,-300.0,0.00014378,2]
[426796849,1782837038000,-500.0,0.00013946,2]
[426796858,1782837038000,-1258.96578757,0.00014013,2]
[426796852,1782837038000,-1022155.43295737,0.00013947,2]
[426796846,1782837038000,-500.0,0.00013946,2]
[426796854,1782837038000,-170.0,0.00013947,2]
[426796957,1782837039000,-500.0,0.00015091,2]
[426796953,1782837039000,-5320342.62198305,0.00015,2]
[426796945,1782837039000,-2000.0,0.000149,2]
[426796955,1782837039000,-170.0,0.00015,2]
[426796956,1782837039000,-170.2714225,0.00015,2]
[426796954,1782837039000,-151.0,0.00015,2]
[426796948,1782837039000,-190.79589059,0.000149,2]
[426796947,1782837039000,-1258.96578757,0.000149,2]
[426796958,1782837039000,-22670.14624453,0.00015576,2]
[426796952,1782837039000,-666.0,0.00014999,2]
[426796949,1782837039000,-162.10337094,0.000149,2]
[426796968,1782837039000,-500.0,0.00016438,2]
[426796967,1782837039000,-500.0,0.00016438,2]
[426796961,1782837039000,-10000.0,0.00016164,2]
[426796962,1782837039000,-500.0,0.00016438,2]
[426796959,1782837039000,-221.6554765,0.0001574,2]
[426796963,1782837039000,-500.0,0.00016438,2]
[426796966,1782837039000,-500.0,0.00016438,2]
[426796964,1782837039000,-500.0,0.00016438,2]
[426796969,1782837039000,-500.0,0.00016438,2]
[426796971,1782837039000,-500.0,0.00016438,2]
[426796977,1782837039000,-500.0,0.00016438,2]
[426796975,1782837039000,-500.0,0.00016438,2]
[426796978,1782837039000,-500.0,0.00016438,2]
[426796951,1782837039000,-300.0,0.00014999,2]
[426796965,1782837039000,-500.0,0.00016438,2]
[426796946,1782837039000,-210.81336156,0.000149,2]
[426796918,1782837039000,-152.0,0.00014614,2]
[426796944,1782837039000,-54793.1437943,0.00014896,2]
[426796902,1782837039000,-200.0,0.00014378,2]
[426796904,1782837039000,-162.10337094,0.00014401,2]
[426796900,1782837039000,-600.0,0.00014378,2]
[426796908,1782837039000,-894.87,0.00014523,2]
[426796906,1782837039000,-1258.96578757,0.00014456,2]
[426796910,1782837039000,-162.10337094,0.00014526,2]
[426796916,1782837039000,-152.0,0.00014614,2]
[426796927,1782837039000,-162.10337094,0.00014775,2]
[426796914,1782837039000,-151.0,0.00014614,2]
[426796912,1782837039000,-1258.96578757,0.00014567,2]
[426796920,1782837039000,-568.63666701,0.00014614,2]
[426796976,1782837039000,-500.0,0.00016438,2]
[426796950,1782837039000,-500.0,0.00014999,2]
[426796924,1782837039000,-1258.96578757,0.00014678,2]
[426796939,1782837039000,-251.2337487,0.00014896,2]
[426796940,1782837039000,-3396.314515,0.00014896,2]
[426796941,1782837039000,-847.9592709,0.00014896,2]
[426796931,1782837039000,-5800.0,0.0001479,2]
[426796943,1782837039000,-11443.1506223,0.00014896,2]
[426796942,1782837039000,-5398.3691454,0.00014896,2]
[426796936,1782837039000,-5800.0,0.00014815,2]
[426796937,1782837039000,-153.0,0.00014815,2]
[426796933,1782837039000,-5800.0,0.00014798,2]
[426796929,1782837039000,-1258.96578757,0.00014789,2]
[426796935,1782837039000,-5800.0,0.00014806,2]
[426796938,1782837039000,-151.0,0.00014815,2]
[426796922,1782837039000,-162.10337094,0.00014651,2]
[426796973,1782837039000,-500.0,0.00016438,2]
[426796960,1782837039000,-169.92,0.00015964,2]
[426796979,1782837039000,-500.0,0.00016438,2]
[426797014,1782837039000,-958.30043467,0.00016438,2]
[426797011,1782837039000,-958.30043467,0.00016438,2]
[426797010,1782837039000,-958.30043467,0.00016438,2]
[426797009,1782837039000,-958.30043467,0.00016438,2]
[426797012,1782837039000,-958.30043467,0.00016438,2]
[426797013,1782837039000,-958.30043467,0.00016438,2]
[426797015,1782837039000,-958.30043467,0.00016438,2]
[426797019,1782837039000,-958.30043467,0.00016438,2]
[426797016,1782837039000,-958.30043467,0.00016438,2]
[426797018,1782837039000,-958.30043467,0.00016438,2]
[426797022,1782837039000,-958.30043467,0.00016438,2]
[426797023,1782837039000,-958.30043467,0.00016438,2]
[426797008,1782837039000,-958.30043467,0.00016438,2]
[426797027,1782837039000,-958.30043467,0.00016438,2]
[426797024,1782837039000,-958.30043467,0.00016438,2]
[426797017,1782837039000,-958.30043467,0.00016438,2]
[426797025,1782837039000,-958.30043467,0.00016438,2]
[426797026,1782837039000,-958.30043467,0.00016438,2]
[426797029,1782837039000,-958.30043467,0.00016438,2]
[426797028,1782837039000,-958.30043467,0.00016438,2]
[426797032,1782837039000,-958.30043467,0.00016438,2]
[426797033,1782837039000,-960.07506511,0.00016438,2]
[426797030,1782837039000,-958.30043467,0.00016438,2]
[426797031,1782837039000,-958.30043467,0.00016438,2]
[426797034,1782837039000,-960.07506511,0.00016438,2]
[426796970,1782837039000,-500.0,0.00016438,2]
[426797021,1782837039000,-958.30043467,0.00016438,2]
[426797007,1782837039000,-958.30043467,0.00016438,2]
[426797020,1782837039000,-958.30043467,0.00016438,2]
[426797006,1782837039000,-958.30043467,0.00016438,2]
[426797005,1782837039000,-958.30043467,0.00016438,2]
[426796972,1782837039000,-500.0,0.00016438,2]
[426796980,1782837039000,-500.0,0.00016438,2]
[426796981,1782837039000,-500.0,0.00016438,2]
[426796983,1782837039000,-500.0,0.00016438,2]
[426796984,1782837039000,-500.0,0.00016438,2]
[426796987,1782837039000,-500.0,0.00016438,2]
[426796992,1782837039000,-500.0,0.00016438,2]
[426796985,1782837039000,-500.0,0.00016438,2]
[426796991,1782837039000,-500.0,0.00016438,2]
[426796990,1782837039000,-500.0,0.00016438,2]
[426796988,1782837039000,-500.0,0.00016438,2]
[426796982,1782837039000,-500.0,0.00016438,2]
[426796989,1782837039000,-500.0,0.00016438,2]
[426796974,1782837039000,-500.0,0.00016438,2]
[426797002,1782837039000,-958.30043467,0.00016438,2]
[426796986,1782837039000,-500.0,0.00016438,2]
[426796996,1782837039000,-958.30043467,0.00016438,2]
[426796995,1782837039000,-500.0,0.00016438,2]
[426796999,1782837039000,-958.30043467,0.00016438,2]
[426797004,1782837039000,-958.30043467,0.00016438,2]
[426797001,1782837039000,-958.30043467,0.00016438,2]
[426797003,1782837039000,-958.30043467,0.00016438,2]
[426797000,1782837039000,-958.30043467,0.00016438,2]
[426796998,1782837039000,-958.30043467,0.00016438,2]
[426796997,1782837039000,-958.30043467,0.00016438,2]
[426796993,1782837039000,-500.0,0.00016438,2]
[426796994,1782837039000,-499.77976665,0.00016438,2]
[426797075,1782837040000,-933.16571604,0.000183,2]
[426797076,1782837040000,-2337.0,0.0001852,2]
[426797073,1782837040000,-6088.0,0.0001809,2]
[426797072,1782837040000,-1231.0,0.0001809,2]
[426797074,1782837040000,-933.16571604,0.000181,2]
[426797067,1782837040000,-150.45465357,0.00017959,2]
[426797071,1782837040000,-1362.0,0.0001809,2]
[426797068,1782837040000,-933.16571604,0.00018,2]
[426797070,1782837040000,-1278.0,0.0001809,2]
[426797069,1782837040000,-283.0,0.0001809,2]
[426797078,1782837040000,-161.0,0.0001869,2]
[426797077,1782837040000,-160.0,0.0001852,2]
[426797088,1782837040000,-3190.39233846,0.00019,2]
[426797081,1782837040000,-973.17,0.0001872,2]
[426797089,1782837040000,-2337.0,0.0001916,2]
[426797079,1782837040000,-2866.64,0.0001872,2]
[426797080,1782837040000,-617.12,0.0001872,2]
[426797082,1782837040000,-19264.16,0.0001872,2]
[426797085,1782837040000,-2337.0,0.0001884,2]
[426797086,1782837040000,-917.05851709,0.00019,2]
[426797083,1782837040000,-241.38,0.0001872,2]
[426797084,1782837040000,-389.17011466,0.00018776,2]
[426797090,1782837040000,-183.68868893,0.00019262,2]
[426797092,1782837040000,-154.58316497,0.000194,2]
[426797091,1782837040000,-160.0,0.00019372,2]
[426797102,1782837040000,-696.0,0.0002,2]
[426797087,1782837040000,-491026.49298894,0.00019,2]
[426797063,1782837040000,-933.16571604,0.000178,2]
[426797099,1782837040000,-182.0,0.0002,2]
[426797062,1782837040000,-3391.0,0.00017746,2]
[426797039,1782837040000,-960.07506511,0.00016438,2]
[426797040,1782837040000,-960.07506511,0.00016438,2]
[426797036,1782837040000,-960.07506511,0.00016438,2]
[426797035,1782837040000,-960.07506511,0.00016438,2]
[426797038,1782837040000,-960.07506511,0.00016438,2]
[426797042,1782837040000,-960.07506511,0.00016438,2]
[426797041,1782837040000,-960.07506511,0.00016438,2]
[426797052,1782837040000,-171.65,0.00016712,2]
[426797045,1782837040000,-960.07506511,0.00016438,2]
[426797043,1782837040000,-960.07506511,0.00016438,2]
[426797049,1782837040000,-960.07506511,0.00016438,2]
[426797048,1782837040000,-960.07506511,0.00016438,2]
[426797046,1782837040000,-960.07506511,0.00016438,2]
[426797047,1782837040000,-960.07506511,0.00016438,2]
[426797051,1782837040000,-960.07506511,0.00016438,2]
[426797044,1782837040000,-960.07506511,0.00016438,2]
[426797050,1782837040000,-960.07506511,0.00016438,2]
[426797054,1782837040000,-221.6554765,0.00017578,2]
[426797065,1782837040000,-213.0,0.00017959,2]
[426797066,1782837040000,-302.46,0.00017959,2]
[426797055,1782837040000,-933.16571604,0.000176,2]
[426797058,1782837040000,-2116.67,0.00017728,2]
[426797059,1782837040000,-6981.37,0.00017728,2]
[426797064,1782837040000,-150.0,0.00017959,2]
[426797057,1782837040000,-1786.63,0.00017671,2]
[426797056,1782837040000,-182.97,0.00017645,2]
[426797053,1782837040000,-221.53729023,0.00017088,2]
[426797060,1782837040000,-5884.17,0.00017728,2]
[426797097,1782837040000,-901.16687839,0.0002,2]
[426797141,1782837040000,-1362.0,0.0002109,2]
[426797094,1782837040000,-788.05,0.00019603,2]
[426797128,1782837040000,-151.0,0.00021035,2]
[426797130,1782837040000,-151.0,0.00021035,2]
[426797135,1782837040000,-151.0,0.00021035,2]
[426797134,1782837040000,-151.0,0.00021035,2]
[426797131,1782837040000,-151.0,0.00021035,2]
[426797132,1782837040000,-151.0,0.00021035,2]
[426797133,1782837040000,-151.0,0.00021035,2]
[426797137,1782837040000,-151.0,0.00021035,2]
[426797136,1782837040000,-151.0,0.00021035,2]
[426797138,1782837040000,-151.0,0.00021035,2]
[426797148,1782837040000,-176.73593335,0.000216,2]
[426797149,1782837040000,-1274.0,0.0002171,2]
[426797129,1782837040000,-151.0,0.00021035,2]
[426797139,1782837040000,-283.0,0.0002109,2]
[426797152,1782837040000,-182.0,0.00022,2]
[426797145,1782837040000,-221.6554765,0.00021253,2]
[426797146,1782837040000,-176.73593335,0.000214,2]
[426797143,1782837040000,-6088.0,0.0002109,2]
[426797142,1782837040000,-1231.0,0.0002109,2]
[426797144,1782837040000,-176.73593335,0.000212,2]
[426797150,1782837040000,-176.73593335,0.000219,2]
[426797153,1782837040000,-202.0,0.00022,2]
[426797151,1782837040000,-5000.0,0.00021918,2]
[426797154,1782837040000,-208.0,0.00022,2]
[426797155,1782837040000,-696.0,0.00022,2]
[426797100,1782837040000,-202.0,0.0002,2]
[426797140,1782837040000,-1278.0,0.0002109,2]
[426797127,1782837040000,-151.0,0.00021035,2]
[426797147,1782837040000,-182.446197,0.00021428,2]
[426797126,1782837040000,-151.0,0.00021035,2]
[426797098,1782837040000,-214.63,0.0002,2]
[426797124,1782837040000,-151.0,0.00021035,2]
[426797095,1782837040000,-2337.0,0.0001997,2]
[426797093,1782837040000,-221.6554765,0.00019416,2]
[426797096,1782837040000,-510.1943185,0.0002,10]
[426797101,1782837040000,-208.0,0.0002,2]
[426797104,1782837040000,-1783.35,0.00020411,2]
[426797103,1782837040000,-2000.0,0.0002,7]
[426797114,1782837040000,-208.0,0.00021,2]
[426797106,1782837040000,-2337.0,0.0002075,2]
[426797110,1782837040000,-4381.8425723,0.00021,2]
[426797108,1782837040000,-190.79589058,0.00020884,2]
[426797107,1782837040000,-210.81336156,0.000208,2]
[426797109,1782837040000,-24405.88,0.00020951,2]
[426797105,1782837040000,-2337.0,0.0002075,2]
[426797123,1782837040000,-151.0,0.00021035,2]